bitfinex/quotes_SOLUSD_20240809
["timestamp","ask_amount","ask_price","bid_price","bid_amount"]
[1723244785000,0.25098,156.01,155.93,22.3872]
[1723244785299,0.25098,156.0,155.93,22.3872]
[1723244785498,0.12549,155.99,155.93,22.3872]
[1723244786133,39.49,156.05,155.93,61.8772]
[1723244786302,6.4072,156.08,155.97,39.49]
[1723244786625,16.0139,156.12,156.0,15.7467]
[1723244786626,6.4066,156.09,156.0,15.7467]
[1723244787716,6.4078,156.06,156.0,15.7467]
[1723244787921,0.12549,156.04,156.0,15.7467]
[1723244788325,0.12549,156.01,156.0,15.7467]
[1723244788502,45.50196,156.01,156.0,15.7467]
[1723244788819,45.50196,156.01,155.94,15.7467]
[1723244790024,45.37647,156.01,155.94,15.7467]
[1723244790516,45.37647,156.01,155.95,20.0]
[1723244791122,45.37647,156.01,155.94,15.7467]
[1723244791318,45.37647,156.01,155.95,20.0]
[1723244792132,0.12549,156.0,155.94,15.7467]
[1723244792834,0.25098,156.01,155.94,55.2367]
[1723244793410,0.25098,156.01,155.94,15.7467]
[1723244793604,0.12549,156.01,155.94,15.7467]
[1723244793805,0.25098,156.01,155.94,15.7467]
[1723244794024,0.12549,156.0,155.94,15.7467]
[1723244796931,0.25098,156.01,155.95,20.0]
[1723244798431,0.25098,156.0,155.94,15.7467]
[1723244798812,6.66118,156.0,155.94,15.7467]
[1723244799156,6.4118,155.97,155.93,6.6405]
[1723244799439,45.25098,155.99,155.89,21.969]
[1723244799440,0.12549,155.95,155.89,21.969]
[1723244799617,0.25098,155.95,155.89,21.969]
[1723244799818,0.12549,155.95,155.89,21.969]
[1723244800037,0.37647,155.95,155.89,21.969]
[1723244800210,0.12549,155.94,155.89,21.969]
[1723244800417,0.12549,155.93,155.89,21.969]
[1723244800727,0.37647,155.93,155.89,21.969]
[1723244800926,0.12549,155.92,155.89,21.969]
[1723244801123,0.12549,155.91,155.86,6.67049987]
[1723244801326,0.12549,155.91,155.8,6.6027]
[1723244801327,0.25098,155.91,155.8,6.6027]
[1723244801527,0.37647,155.91,155.81,39.49]
[1723244801830,0.12549,155.9,155.83,39.49]
[1723244802029,0.25098,155.9,155.82,39.49]
[1723244802229,0.12549,155.88,155.81,6.67116836]
[1723244802434,0.12549,155.85,155.81,6.67116836]
[1723244802732,0.50196,155.85,155.79,15.3663]
[1723244805349,0.50196,155.85,155.76,6.6027]
[1723244806332,0.50196,155.85,155.77,39.49]
[1723244806919,52.4993,155.9,155.78,20.0]
[1723244807136,19.20241974,155.92,155.78,20.0]
[1723244807137,6.414,155.91,155.79,40.77336138]
[1723244807326,6.414,155.91,155.8,20.0]
[1723244807840,6.414,155.91,155.81,15.3663]
[1723244808532,39.49,155.92,155.81,54.8563]
[1723244808846,6.6700239,155.96,155.85,39.49]
[1723244809020,6.4118,155.97,155.86,26.6027]
[1723244809337,6.4119,155.96,155.86,26.6027]
[1723244809543,39.49,155.96,155.86,26.6027]
[1723244809712,6.413,155.94,155.86,26.6027]
[1723244809916,39.49,156.0,155.86,26.6027]
[1723244809917,22.618,156.03,155.87,40.77295759]
[1723244810131,39.49,156.01,155.89,39.49]
[1723244810335,39.49,156.01,155.9,20.0]
[1723244810542,39.49,155.99,155.88,20.0]
[1723244810748,6.4119,155.96,155.88,20.0]
[1723244810923,45.901,155.99,155.88,20.0]
[1723244811634,39.49,156.03,155.91,39.49]
[1723244811840,39.49,156.05,155.93,39.49]
[1723244812020,6.4087,156.04,155.93,39.49]
[1723244812214,39.49,156.03,155.94,20.0]
[1723244812842,39.49,156.03,155.93,20.0]
[1723244813023,6.4098,156.01,155.93,20.0]
[1723244813228,0.37647,156.0,155.93,20.0]
[1723244813428,0.25098,155.99,155.93,20.0]
[1723244813648,10.21316357,156.08,155.94,39.49]
[1723244813946,45.8974,156.07,155.96,6.6027]
[1723244814181,45.8974,156.07,155.97,20.0]
[1723244814182,6.4078,156.06,155.97,20.0]
[1723244814325,39.49,156.05,155.96,6.6027]
[1723244814722,39.49,156.07,155.96,6.6027]
[1723244815127,39.49,156.07,155.97,20.0]
[1723244816146,45.8974,156.07,155.97,20.0]
[1723244816764,39.49,156.09,155.97,20.0]
[1723244817052,22.2361,156.11,156.0,39.49]
[1723244817053,45.8957,156.11,156.0,39.49]
[1723244817232,6.4056,156.12,156.01,20.0]
[1723244817431,6.4057,156.11,156.01,20.0]
[1723244818953,0.25098,156.1,156.01,20.0]
[1723244819256,0.37647,156.09,156.01,20.0]
[1723244819449,39.49,156.13,156.02,39.49]
[1723244819652,39.49,156.15,156.05,6.2292]
[1723244819842,39.49,156.17,156.06,55.1655]
[1723244820225,39.49,156.17,156.06,15.6755]
[1723244820427,39.49,156.15,156.06,15.6755]
[1723244820652,45.8945,156.15,156.06,15.6755]
[1723244820852,6.4037,156.16,156.06,15.6755]
[1723244821159,6.4042,156.15,156.06,15.6755]
[1723244821339,6.4054,156.12,156.06,15.6755]
[1723244821528,6.405,156.13,156.06,15.6755]
[1723244822156,0.12549,156.12,156.06,15.6755]
[1723244822462,16.0088,156.17,156.07,1.28132669]
[1723244822463,39.49,156.17,156.07,1.28132669]
[1723244822624,10.05454616,156.18,156.07,21.28132669]
[1723244822829,6.4032,156.17,156.07,20.0]
[1723244823026,39.49,156.19,156.07,20.0]
[1723244823027,6.4036,156.16,156.07,20.0]
[1723244823227,39.49,156.15,156.07,20.0]
[1723244823433,6.4045,156.14,156.07,20.0]
[1723244823629,49.5245076,156.15,156.06,15.6755]
[1723244823829,0.12549,156.1,156.06,15.6755]
[1723244824075,0.50196,156.1,156.06,15.6755]
[1723244824356,0.12549,156.1,156.06,15.6755]
[1723244824552,10.0345076,156.15,156.07,39.49]
[1723244824731,6.4045,156.14,156.06,15.6755]
[1723244825159,39.49,156.12,156.06,15.6755]
[1723244825373,45.8954,156.12,156.06,15.6755]
[1723244825660,6.53129,156.11,156.06,15.6755]
[1723244825868,0.37647,156.1,156.06,15.6755]
[1723244826033,0.12549,156.09,156.05,6.2292]
[1723244826231,0.12549,156.09,156.02,15.6755]
[1723244826232,0.12549,156.08,156.02,15.6755]
[1723244826460,0.37647,156.08,156.02,15.6755]
[1723244826762,0.12549,156.07,156.02,15.6755]
[1723244826958,0.12549,156.06,156.02,15.6755]
[1723244827260,0.37647,156.06,156.02,15.6755]
[1723244827461,10.0345076,156.15,156.02,15.6755]
[1723244827664,45.8945,156.14,156.02,15.6755]
[1723244828160,10.0345076,156.15,156.05,39.49]
[1723244828858,10.0345076,156.15,156.06,20.0]
[1723244829065,10.0345076,156.15,156.11,39.49]
[1723244829243,7.2431987,156.23,156.11,39.49]
[1723244829442,6.4012,156.22,156.11,39.49]
[1723244829637,39.49,156.22,156.09,15.6755]
[1723244829838,6.4026,156.19,156.1,20.0]
[1723244830143,39.49,156.22,156.1,20.0]
[1723244830643,17.2746343,156.23,156.13,39.49]
[1723244830644,0.8420987,156.23,156.13,39.49]
[1723244831035,7.2431987,156.23,156.1,20.0]
[1723244831237,6.4012,156.22,156.12,39.49]
[1723244831439,6.4012,156.22,156.13,20.0]
[1723244832162,39.49,156.22,156.13,20.0]
[1723244832378,6.4024,156.19,156.09,15.6755]
[1723244832553,0.37647,156.18,156.1,20.0]
[1723244833249,0.12549,156.17,156.1,20.0]
[1723244834066,0.12549,156.17,156.09,15.6755]
[1723244834638,0.12549,156.17,156.1,39.49]
[1723244835960,0.12549,156.17,156.11,21.28077464]
[1723244837361,7.2429987,156.23,156.12,39.49]
[1723244837548,6.4016,156.21,156.12,39.49]
[1723244838243,0.8420987,156.23,156.11,20.0]
[1723244838244,39.49,156.22,156.11,20.0]
[1723244838658,6.4021,156.2,156.11,20.0]
[1723244838866,0.50196,156.19,156.11,20.0]
[1723244839355,0.8420987,156.23,156.12,39.49]
[1723244839569,0.8420987,156.23,156.13,20.0]
[1723244840339,0.8420987,156.23,156.14,39.49]
[1723244840662,0.8420987,156.23,156.13,21.28055978]
[1723244840663,0.8420987,156.23,156.16,39.49]
[1723244841071,0.8420987,156.23,156.14,39.49]
[1723244841241,6.4015,156.22,156.13,20.0]
[1723244841442,7.2428987,156.23,156.13,20.0]
[1723244841640,0.25098,156.22,156.14,39.49]
[1723244841873,0.12549,156.21,156.14,39.49]
[1723244843058,0.8420987,156.23,156.16,39.49]
[1723244843261,0.8420987,156.23,156.18,39.49]
[1723244843450,0.8420987,156.23,156.18,40.77029486]
[1723244844272,0.8420987,156.23,156.2,39.49]
[1723244844674,0.8420987,156.23,156.18,16.4218]
[1723244845376,0.25098,156.22,156.14,16.4218]
[1723244845567,0.12549,156.2,156.14,16.4218]
[1723244846083,0.25098,156.2,156.14,16.4218]
[1723244846265,0.25098,156.21,156.14,55.9118]
[1723244846577,0.12549,156.21,156.14,55.9118]
[1723244846781,0.50196,156.22,156.14,55.9118]
[1723244846966,0.8420987,156.23,156.18,39.49]
[1723244847150,0.8420987,156.23,156.2,39.49]
[1723244847353,0.8420987,156.23,156.21,1.28008586]
[1723244847686,0.8420987,156.23,156.2,39.49]
[1723244849057,0.8420987,156.23,156.19,20.0]
[1723244849671,0.8420987,156.23,156.16,39.49]
[1723244849877,0.12549,156.22,156.17,20.0]
[1723244850381,0.12549,156.22,156.13,6.0258]
[1723244850382,6.402,156.2,156.13,6.0258]
[1723244850704,0.50196,156.19,156.13,6.0258]
[1723244850855,0.12549,156.18,156.09,16.4218]
[1723244851053,0.25098,156.18,156.09,16.4218]
[1723244851286,0.37647,156.17,156.09,16.4218]
[1723244851584,6.65468,156.16,156.06,39.49]
[1723244851771,0.37647,156.15,156.06,39.49]
[1723244851979,0.25098,156.14,156.06,39.49]
[1723244852153,0.25098,156.13,156.05,6.65940988]
[1723244852357,0.12549,156.11,156.05,6.65940988]
[1723244852555,0.12549,156.11,156.03,16.4218]
[1723244852784,0.12549,156.11,156.0,6.0258]
[1723244852785,0.25098,156.11,156.0,6.0258]
[1723244853161,0.25098,156.11,155.98,62.578019]
[1723244853162,0.12549,156.07,155.98,62.578019]
[1723244853381,0.12549,156.05,155.98,6.666219]
[1723244853685,0.25098,156.05,155.98,6.666219]
[1723244854006,0.25098,156.05,155.93,39.49]
[1723244854007,0.12549,156.03,155.93,39.49]
[1723244854292,0.12549,156.03,155.95,39.49]
[1723244854587,0.12549,156.03,155.93,39.49]
[1723244855087,0.12549,156.03,155.94,20.0]
[1723244856075,6.4095,156.02,155.92,16.4218]
[1723244856273,6.78627,156.01,155.92,16.4218]
[1723244856476,39.49,155.98,155.9,6.66471435]
[1723244856757,0.12549,156.0,155.76,45.01551577]
[1723244856758,0.12549,155.92,155.82,39.49]
[1723244857059,0.25098,155.92,155.82,39.49]
[1723244857262,0.25098,155.91,155.84,39.49]
[1723244857477,0.12549,155.91,155.84,39.49]
[1723244857789,0.25098,155.92,155.8,22.4854]
[1723244858090,0.12549,155.9,155.81,39.49]
[1723244858262,0.25098,155.9,155.81,39.49]
[1723244858457,0.25098,155.89,155.81,39.49]
[1723244858679,0.12549,155.88,155.79,46.15105831]
[1723244858877,39.74098,155.88,155.76,39.49]
[1723244859071,0.25098,155.87,155.76,39.49]
[1723244859268,0.25098,155.86,155.8,39.49]
[1723244859785,0.25098,155.85,155.78,39.49]
[1723244859985,0.25098,155.84,155.78,39.49]
[1723244860191,0.12549,155.84,155.78,39.49]
[1723244860488,0.25098,155.85,155.79,1.28343762]
[1723244860984,0.12549,155.84,155.75,13.00724155]
[1723244861177,0.25098,155.84,155.75,52.49724155]
[1723244861355,0.12549,155.82,155.75,52.49724155]
[1723244861560,0.25098,155.82,155.75,52.49724155]
[1723244861787,0.25098,155.81,155.75,45.842]
[1723244861962,0.25098,155.81,155.75,6.352]
[1723244862158,0.12549,155.8,155.7,6.4156]
[1723244862403,0.25098,155.8,155.71,39.49]
[1723244862691,0.25098,155.81,155.7,23.12349865]
[1723244862998,0.25098,155.8,155.73,39.49]
[1723244863195,0.25098,155.79,155.71,39.49]
[1723244863497,0.12549,155.78,155.71,39.49]
[1723244863669,0.25098,155.78,155.7,13.06993788]
[1723244863865,0.37647,155.77,155.7,45.9056]
[1723244864176,0.12549,155.78,155.69,0.8420987]
[1723244864380,0.25098,155.78,155.72,39.49]
[1723244864866,0.25098,155.78,155.69,0.8420987]
[1723244864867,0.25098,155.77,155.7,39.49]
[1723244865786,0.25098,155.76,155.71,20.0]
[1723244866288,0.25098,155.76,155.69,0.8420987]
[1723244866289,0.25098,155.76,155.7,39.49]
[1723244866503,0.25098,155.76,155.71,20.0]
[1723244867092,19.49379879,155.85,155.74,39.49]
[1723244867093,6.4167,155.85,155.74,39.49]
[1723244867290,39.49,155.88,155.76,39.49]
[1723244867499,32.1885,155.92,155.78,39.49]
[1723244867500,42.9356241,155.9,155.78,39.49]
[1723244867663,39.49,155.9,155.78,39.49]
[1723244867870,39.49,155.88,155.76,39.49]
[1723244868477,6.4152,155.88,155.76,39.49]
[1723244868699,6.4152,155.88,155.77,20.0]
[1723244868889,59.1026111,155.92,155.8,39.49]
[1723244869087,3.4588111,155.92,155.82,39.49]
[1723244869271,16.1538,155.99,155.86,39.49]
[1723244869272,55.6438,155.99,155.86,39.49]
[1723244869476,39.49,155.95,155.84,39.49]
[1723244869677,6.4143,155.91,155.82,39.49]
[1723244870094,6.4144,155.9,155.82,39.49]
[1723244870390,6.4152,155.88,155.8,39.49]
[1723244870593,6.4152,155.88,155.78,6.4156]
[1723244870594,39.49,155.89,155.76,39.49]
[1723244870768,39.49,155.89,155.77,20.0]
[1723244870968,0.12549,155.88,155.77,20.0]
[1723244871391,0.12549,155.87,155.77,20.0]
[1723244871600,0.37647,155.87,155.77,20.0]
[1723244871803,0.12549,155.86,155.77,20.0]
[1723244872101,6.54199,155.85,155.77,20.0]
[1723244872399,0.12549,155.83,155.77,20.0]
[1723244873992,0.12549,155.83,155.72,6.4156]
[1723244874503,0.12549,155.83,155.73,40.77389901]
[1723244875396,0.12549,155.83,155.74,20.0]
[1723244876176,0.12549,155.83,155.72,6.4156]
[1723244876377,0.12549,155.79,155.72,6.4156]
[1723244876578,0.12549,155.79,155.73,20.0]
[1723244876805,0.12549,155.79,155.74,0.98503394]
[1723244877099,0.12549,155.79,155.73,20.0]
[1723244879781,0.12549,155.79,155.69,62.20202008]
[1723244880108,39.49,155.85,155.73,39.49]
[1723244880415,6.4193,155.78,155.69,62.20202008]
[1723244880599,6.4189,155.79,155.69,62.20202008]
[1723244881096,6.4193,155.78,155.69,62.20202008]
[1723244881303,0.25098,155.77,155.69,55.5465987]
[1723244881483,0.25098,155.76,155.69,55.5465987]
[1723244881683,0.25098,155.75,155.69,55.5465987]
[1723244881887,0.37647,155.74,155.69,55.5465987]
[1723244882084,0.25098,155.74,155.69,55.5465987]
[1723244882286,0.25098,155.74,155.7,20.0]
[1723244882601,0.25098,155.74,155.69,0.8420987]
[1723244882809,0.12549,155.72,155.69,0.8420987]
[1723244883104,0.25098,155.72,155.69,0.8420987]
[1723244883320,0.37647,155.72,155.69,0.8420987]
[1723244883611,0.25098,155.72,155.69,0.8420987]
[1723244885110,0.12549,155.73,155.7,1.28447777]
[1723244885291,3.48910402,155.79,155.7,1.28447777]
[1723244885485,6.4187,155.8,155.7,1.28447777]
[1723244886290,6.4189,155.79,155.7,1.28447777]
[1723244886607,0.12549,155.78,155.7,1.28447777]
[1723244886916,0.25098,155.79,155.7,1.28447777]
[1723244887405,6.6577601,155.85,155.7,1.28447777]
[1723244887406,39.49,155.86,155.73,39.49]
[1723244887605,42.98939411,155.86,155.73,39.49]
[1723244887808,6.4177,155.82,155.73,39.49]
[1723244887990,39.49,155.84,155.69,0.8420987]
[1723244888184,39.49,155.84,155.72,39.49]
[1723244888388,6.4164,155.85,155.74,39.49]
[1723244888609,39.49,155.84,155.72,39.49]
[1723244888908,6.4181,155.81,155.73,20.0]
[1723244889803,0.12549,155.79,155.73,20.0]
[1723244890997,6.4177,155.82,155.73,20.0]
[1723244891712,52.3755,155.88,155.76,39.49]
[1723244891892,6.4155,155.88,155.77,20.0]
[1723244892092,6.4155,155.88,155.78,40.77347917]
[1723244892807,39.49,155.9,155.78,40.77347917]
[1723244892996,39.49,155.86,155.74,46.0631]
[1723244893312,6.4173,155.83,155.75,20.0]
[1723244894291,45.50196,155.82,155.75,20.0]
[1723244897501,84.99196,155.82,155.7,6.6427]
[1723244897814,39.99196,155.82,155.7,6.6427]
[1723244898005,46.40966,155.82,155.7,6.6427]
[1723244898195,39.99196,155.82,155.7,6.6427]
[1723244899299,39.99196,155.82,155.71,20.0]
[1723244899500,0.12549,155.8,155.71,20.0]
[1723244899715,0.50196,155.8,155.71,20.0]
[1723244901200,45.7749,155.84,155.72,1.28402207]
[1723244901512,6.4181,155.81,155.71,59.49]
[1723244901717,39.49,155.82,155.71,20.0]
[1723244902018,6.4185,155.8,155.71,20.0]
[1723244902515,0.12549,155.78,155.71,20.0]
[1723244902695,45.37647,155.78,155.71,20.0]
[1723244902895,0.12549,155.77,155.71,20.0]
[1723244903095,0.25098,155.78,155.71,21.28406069]
[1723244903325,39.49,155.84,155.72,39.49]
[1723244904393,39.49,155.84,155.73,20.0]
[1723244904596,45.12549,155.83,155.73,20.0]
[1723244904793,0.25098,155.82,155.73,20.0]
[1723244904994,0.25098,155.81,155.73,20.0]
[1723244905201,0.12549,155.8,155.73,20.0]
[1723244905501,0.25098,155.8,155.73,20.0]
[1723244905705,6.79547,155.79,155.71,20.0]
[1723244906006,45.12549,155.78,155.71,20.0]
[1723244906201,0.12549,155.77,155.71,20.0]
[1723244906417,45.0,155.8,155.72,39.49]
[1723244906600,0.12549,155.78,155.71,20.0]
[1723244907505,45.12549,155.78,155.71,20.0]
[1723244907703,0.12549,155.76,155.71,20.0]
[1723244907913,0.25098,155.76,155.71,20.0]
[1723244908221,0.12549,155.75,155.7,6.6427]
[1723244908414,0.12549,155.74,155.7,6.6427]
[1723244908598,0.25098,155.75,155.7,6.6427]
[1723244908799,0.12549,155.76,155.71,32.70148646]
[1723244909012,0.12549,155.76,155.72,1.0128634]
[1723244909323,0.12549,155.76,155.71,31.69]
[1723244909700,39.6,155.83,155.72,59.6]
[1723244909905,49.65586123,155.85,155.73,1.28384966]
[1723244910118,49.65586123,155.85,155.72,59.6]
[1723244910619,6.4194,155.78,155.7,6.6427]
[1723244910823,6.419,155.79,155.71,20.0]
[1723244911121,0.12549,155.78,155.71,20.0]
[1723244911312,45.50196,155.78,155.71,20.0]
[1723244911806,45.50196,155.78,155.7,46.2427]
[1723244911807,51.92156,155.78,155.7,6.6427]
[1723244912011,0.12549,155.76,155.7,6.6427]
[1723244912234,45.37647,155.76,155.7,6.6427]
[1723244912525,51.92206,155.76,155.7,6.6427]
[1723244913027,45.50196,155.76,155.7,6.6427]
[1723244914811,39.6,155.81,155.7,6.6427]
[1723244915007,6.4189,155.79,155.7,6.6427]
[1723244916201,0.12549,155.77,155.7,6.6427]
[1723244916419,39.6,155.75,155.69,0.8420987]
[1723244916734,6.54809,155.7,155.69,0.8420987]
[1723244917023,51.79907,155.7,155.69,0.8420987]
[1723244917216,51.92456,155.7,155.69,0.8420987]
[1723244917536,0.12549,155.63,155.57,6.66002822]
[1723244917743,0.25098,155.63,155.55,6.6639]
[1723244918033,0.50196,155.63,155.55,6.6639]
[1723244918224,0.50196,155.63,155.54,21.82850321]
[1723244918225,0.12549,155.61,155.54,21.82850321]
[1723244918424,0.12549,155.61,155.53,0.8420987]
[1723244918425,6.428,155.57,155.53,0.8420987]
[1723244918635,39.97647,155.56,155.53,0.8420987]
[1723244918816,46.15469,155.54,155.53,0.8420987]
[1723244919222,46.53116,155.54,155.53,0.8420987]
[1723244920224,0.12549,155.53,155.42,21.8326]
[1723244920434,0.12549,155.48,155.41,6.662909]
[1723244920610,0.12549,155.48,155.38,7.5059987]
[1723244920814,0.50196,155.48,155.38,7.5059987]
[1723244921038,6.93356,155.48,155.38,7.5059987]
[1723244921415,6.4321,155.47,155.38,7.5059987]
[1723244921736,0.50196,155.46,155.38,7.5059987]
[1723244922043,0.12549,155.45,155.38,7.5059987]
[1723244922218,0.12549,155.48,155.38,7.5059987]
[1723244922219,39.6,155.54,155.41,39.6]
[1723244922416,6.4296,155.53,155.41,39.6]
[1723244922621,39.6,155.54,155.41,39.6]
[1723244922945,39.6,155.58,155.45,39.6]
[1723244923324,46.0276,155.58,155.45,39.6]
[1723244923944,39.6,155.58,155.42,15.1687]
[1723244924268,39.6,155.58,155.45,39.6]
[1723244924457,39.6,155.58,155.42,15.1687]
[1723244924748,46.028,155.57,155.44,39.6]
[1723244924937,39.6,155.57,155.44,39.6]
[1723244925248,39.6,155.53,155.42,15.1687]
[1723244925625,0.25098,155.52,155.42,15.1687]
[1723244925924,0.25098,155.52,155.43,20.0]
[1723244926135,0.25098,155.51,155.43,20.0]
[1723244926340,0.12549,155.51,155.43,20.0]
[1723244926666,0.12549,155.51,155.42,54.7687]
[1723244927026,0.25098,155.52,155.44,39.6]
[1723244927244,39.6,155.55,155.44,39.6]
[1723244927445,39.6,155.59,155.46,39.6]
[1723244927623,39.6,155.59,155.47,6.6639]
[1723244927822,39.6,155.63,155.5,39.6]
[1723244928139,39.6,155.63,155.51,20.0]
[1723244928623,46.025,155.65,155.53,15.1687]
[1723244928923,39.6,155.65,155.53,15.1687]
[1723244929124,39.6,155.61,155.53,15.1687]
[1723244929341,6.4267,155.6,155.53,15.1687]
[1723244929937,0.12549,155.59,155.53,15.1687]
[1723244930337,39.72549,155.59,155.53,15.1687]
[1723244930549,51.4275,155.58,155.53,15.1687]
[1723244930752,0.50196,155.57,155.53,15.1687]
[1723244930949,0.50196,155.57,155.47,6.6639]
[1723244931162,0.50196,155.57,155.48,20.0]
[1723244931838,0.50196,155.57,155.47,6.6639]
[1723244932474,40.10196,155.57,155.47,6.6639]
[1723244932651,0.12549,155.53,155.47,6.6639]
[1723244932957,39.6,155.57,155.47,6.6639]
[1723244933165,45.12549,155.56,155.47,6.6639]
[1723244933335,0.12549,155.55,155.47,6.6639]
[1723244934172,0.12549,155.54,155.47,6.6639]
[1723244934348,0.37647,155.54,155.47,6.6639]
[1723244934657,0.12549,155.53,155.47,6.6639]
[1723244934862,0.12549,155.52,155.47,6.6639]
[1723244935065,0.37647,155.52,155.47,6.6639]
[1723244935235,0.12549,155.51,155.47,6.6639]
[1723244935838,39.6,155.58,155.47,7.94992901]
[1723244936057,39.6,155.6,155.47,46.2639]
[1723244936239,39.6,155.6,155.49,39.6]
[1723244936572,39.6,155.6,155.5,21.28567038]
[1723244936782,6.4266,155.61,155.5,21.28567038]
[1723244937562,46.0259,155.62,155.51,39.6]
[1723244937768,6.4255,155.63,155.53,39.6]
[1723244937965,6.4255,155.63,155.54,1.2853027]
[1723244938178,6.4255,155.63,155.55,1.28535045]
[1723244939079,6.4255,155.63,155.53,39.6]
[1723244939888,6.4255,155.63,155.53,40.8850896]
[1723244940063,39.6,155.66,155.55,39.6]
[1723244940261,6.4245,155.66,155.56,1.2848587]
[1723244940554,39.6,155.69,155.57,45.7194]
[1723244940761,6.4243,155.66,155.58,20.0]
[1723244941186,39.6,155.67,155.58,20.0]
[1723244941822,0.12549,155.66,155.58,20.0]
[1723244942256,39.6,155.69,155.58,20.0]
[1723244942467,6.4234,155.68,155.58,20.0]
[1723244942786,6.4234,155.68,155.58,59.6]
[1723244942956,6.423,155.69,155.58,60.8849318]
[1723244943481,38.5122,155.77,155.6,39.6]
[1723244943482,39.6,155.73,155.6,39.6]
[1723244943655,39.6,155.73,155.62,39.6]
[1723244943857,39.6,155.73,155.61,16.85518289]
[1723244944168,39.6,155.71,155.61,15.5705]
[1723244944365,6.4226,155.7,155.61,15.5705]
[1723244944568,6.4226,155.7,155.61,16.85529443]
[1723244944569,0.12549,155.7,155.61,16.85529443]
[1723244944788,0.37647,155.7,155.61,16.85529443]
[1723244946303,0.12549,155.69,155.61,15.5705]
[1723244946495,6.54929,155.68,155.61,15.5705]
[1723244947415,0.25098,155.67,155.61,15.5705]
[1723244947698,0.12549,155.7,155.62,1.2848353]
[1723244947890,0.25098,155.7,155.62,1.2848353]
[1723244948077,0.12549,155.69,155.61,15.5705]
[1723244948278,0.25098,155.69,155.61,15.5705]
[1723244948807,0.25098,155.69,155.61,16.3604145]
[1723244948979,0.25098,155.69,155.61,16.85518876]
[1723244949793,0.25098,155.68,155.61,15.5705]
[1723244949978,0.25098,155.69,155.61,15.5705]
[1723244950179,0.12549,155.69,155.61,15.5705]
[1723244950373,6.4239,155.67,155.61,15.5705]
[1723244950580,0.12549,155.68,155.61,15.5705]
[1723244950581,0.37647,155.68,155.61,15.5705]
[1723244950877,0.12549,155.67,155.61,15.5705]
[1723244951085,0.25098,155.67,155.61,15.5705]
[1723244951276,0.12549,155.66,155.61,15.5705]
[1723244951477,0.25098,155.66,155.61,15.5705]
[1723244951826,0.25098,155.66,155.57,6.1194]
[1723244951827,0.12549,155.63,155.57,6.1194]
[1723244952095,0.12549,155.65,155.57,6.1194]
[1723244952096,0.12549,155.64,155.57,6.1194]
[1723244952299,0.25098,155.64,155.58,1.28507095]
[1723244952474,0.12549,155.62,155.57,6.1194]
[1723244952678,0.25098,155.62,155.57,6.1194]
[1723244952898,0.25098,155.61,155.57,6.1194]
[1723244953289,0.12549,155.62,155.57,6.1194]
[1723244958702,0.12549,155.62,155.56,15.5705]
[1723244958891,0.12549,155.59,155.56,15.5705]
[1723244959092,0.37647,155.59,155.56,15.5705]
[1723244959312,0.37647,155.59,155.53,6.4941]
[1723244959313,0.50196,155.59,155.53,6.4941]